Department Family,Date Paid,Expense Type,Expense Area,Supplier,Transaction Number,Amount,Vat Inclusive
Crown Prosecution Service ,06/06/22,Crown Court Graduated Fee Scheme,London North Complex Casework Unit,6 Kings Bench Walk- Chambers of D Fisher & D Perry,102001 DAT,"36,639.00",Y
Crown Prosecution Service ,06/06/22,Crown Court Graduated Fee Scheme,East Midlands Complex Casework Unit,6 Kings Bench Walk- Chambers of D Fisher & D Perry,102227 TC,"33,186.96",Y
Crown Prosecution Service ,06/06/22,Crown Court Graduated Fee Scheme,West Midlands Complex Casework Unit,No 5 Fountain Court Chambers,822843/MH/FAROUK,"29,208.96",Y
Crown Prosecution Service ,06/06/22,Crown Court Graduated Fee Scheme,London North Complex Casework Unit,QEB Hollis Whiteman Chambers,JE 108631,"41,358.60",Y
Crown Prosecution Service ,08/06/22,Apprenticeship Levy payments Permanent,Other Corporate Programme Payments,HM Revenue and Customs,948PB000021422302,"113,197.62",
Crown Prosecution Service ,08/06/22,National Insurance payable,Balance Sheet,HM Revenue and Customs,948PB000021422302,"4,921,787.73",
Crown Prosecution Service ,08/06/22,PAYE payable,Balance Sheet,HM Revenue and Customs,948PB000021422302,"3,689,149.16",
Crown Prosecution Service ,08/06/22,Apprenticeship Levy payments Permanent,Other Corporate Admin Payments,HM Revenue and Customs,948PB000021422302,"7,225.38",
Crown Prosecution Service ,09/06/22,National non domestic rates,Estate and FM: Programme,Government Property Agency London,00000001/16964,"411,822.76",
Crown Prosecution Service ,09/06/22,Landlord service charge,Estate and FM: Administration,Government Property Agency London,00000001/16964,"288,315.34",
Crown Prosecution Service ,09/06/22,National non domestic rates,Estate and FM: Administration,Government Property Agency London,00000001/16964,"84,349.24",
Crown Prosecution Service ,09/06/22,Landlord service charge,Estate and FM: Programme,Government Property Agency London,00000001/16964,"1,407,657.23",
Crown Prosecution Service ,09/06/22,National non domestic rates,Estate and FM: Administration,Government Property Agency London,00000001/18225,"84,330.16",
Crown Prosecution Service ,09/06/22,Landlord service charge,Estate and FM: Programme,Government Property Agency London,00000001/18225,"1,413,981.78",
Crown Prosecution Service ,09/06/22,Landlord service charge,Estate and FM: Administration,Government Property Agency London,00000001/18225,"289,610.72",
Crown Prosecution Service ,09/06/22,National non domestic rates,Estate and FM: Programme,Government Property Agency London,00000001/18225,"411,729.59",
Crown Prosecution Service ,09/06/22,Property management fees,Estate and FM: Programme,Government Property Agency London,00000001/18335,"46,440.00",Y
Crown Prosecution Service ,09/06/22,Landlord service charge,Estate and FM: Programme,Government Property Agency London,00000001/18335,"8,914.43",
Crown Prosecution Service ,09/06/22,Property management fees,Estate and FM: Programme,Government Property Agency London,00000001/18481,"6,897.64",Y
Crown Prosecution Service ,09/06/22,Landlord service charge,Estate and FM: Programme,Government Property Agency London,00000001/18481,"38,333.57",Y
Crown Prosecution Service ,09/06/22,National non domestic rates,Estate and FM: Programme,Government Property Agency London,00000001/18481,"22,986.00",
Crown Prosecution Service ,09/06/22,Lease liability non current lease payments,Balance Sheet,Government Property Agency London,00000001/18481,"69,372.10",
Crown Prosecution Service ,09/06/22,Property management fees,Estate and FM: Programme,Government Property Agency London,00000001/18581,729.00,Y
Crown Prosecution Service ,09/06/22,National non domestic rates,Estate and FM: Programme,Government Property Agency London,00000001/18581,"19,584.00",
Crown Prosecution Service ,09/06/22,Accommodation rental costs (non-IFRS16),Estate and FM: Programme,Government Property Agency London,00000001/18581,"12,000.00",
Crown Prosecution Service ,09/06/22,Property management fees,Estate and FM: Programme,Government Property Agency London,00000001/18588,"6,402.24",Y
Crown Prosecution Service ,09/06/22,National non domestic rates,Estate and FM: Programme,Government Property Agency London,00000001/18588,"4,156.00",
Crown Prosecution Service ,09/06/22,Lease liability non current lease payments,Balance Sheet,Government Property Agency London,00000001/18588,"6,002.47",
Crown Prosecution Service ,09/06/22,Landlord service charge,Estate and FM: Programme,Government Property Agency London,00000001/18588,"18,659.77",
Crown Prosecution Service ,09/06/22,Property management fees,Estate and FM: Programme,Government Property Agency London,00000001/18589,607.50,Y
Crown Prosecution Service ,09/06/22,Landlord service charge,Estate and FM: Programme,Government Property Agency London,00000001/18589,"70,810.26",
Crown Prosecution Service ,09/06/22,Property management fees,Estate and FM: Programme,Government Property Agency London,00000001/18590,"5,903.02",Y
Crown Prosecution Service ,09/06/22,Lease liability non current lease payments,Balance Sheet,Government Property Agency London,00000001/18590,"26,746.38",
Crown Prosecution Service ,09/06/22,Lease liability non current lease payments,Balance Sheet,Government Property Agency London,00000001/18655,"106,451.25",
Crown Prosecution Service ,09/06/22,Landlord service charge,Estate and FM: Programme,Government Property Agency London,00000001/18655,"50,122.06",
Crown Prosecution Service ,09/06/22,National non domestic rates,Estate and FM: Programme,Government Property Agency London,00000001/18655,"38,400.00",
Crown Prosecution Service ,09/06/22,Property management fees,Estate and FM: Programme,Government Property Agency London,00000001/18655,"13,534.94",Y
Crown Prosecution Service ,09/06/22,Landlord service charge,Estate and FM: Programme,Government Property Agency London,0000001/9214,"55,354.43",Y
Crown Prosecution Service ,09/06/22,Property management fees,Estate and FM: Programme,Government Property Agency London,0000001/9214,"3,932.10",Y
Crown Prosecution Service ,09/06/22,Crown Court Graduated Fee Scheme,Wessex Crown Court Unit,12 College Place,124473rab1,"43,826.04",Y
Crown Prosecution Service ,09/06/22,Crown Court Graduated Fee Scheme,East Midlands Complex Casework Unit,Seven Bedford Row,190928-jmh,"29,641.80",Y
Crown Prosecution Service ,09/06/22,IT services,DTS Programme Project Cost,Green Lemon Company Ltd Haywards Heath,GLC_Invoice_2022-02_396,"26,400.00",Y
Crown Prosecution Service ,10/06/22,Landlord service charge,Estate and FM: Administration,Government Property Agency London,00000001/17906,"18,616.48",
Crown Prosecution Service ,10/06/22,National non domestic rates,Estate and FM: Administration,Government Property Agency London,00000001/17906,"9,408.00",
Crown Prosecution Service ,10/06/22,Crown Court Graduated Fee Scheme,Counter Terrorism Unit: Internal Funding,6 Kings Bench Walk- Chambers of D Fisher & D Perry,102161 DAR,"82,989.26",Y
Crown Prosecution Service ,10/06/22,Crown Court Graduated Fee Scheme,London North Complex Casework Unit,6 Kings Bench Walk- Chambers of D Fisher & D Perry,102669 TC,"26,091.00",Y
Crown Prosecution Service ,10/06/22,Crown Court Graduated Fee Scheme,West Midlands Complex Casework Unit,Drystone Chambers (Dyers),200381  SHIELDS BS,"29,960.84",Y
Crown Prosecution Service ,10/06/22,Crown Court Graduated Fee Scheme,North West Crown Court Hub,Lincoln House Chambers,249094GG,"45,180.60",Y
Crown Prosecution Service ,10/06/22,Crown Court Graduated Fee Scheme,North West Complex Casework Unit,Exchange Chambers - Manchester,588872 AS ..,"34,623.60",Y
Crown Prosecution Service ,10/06/22,IT non capital software licences,Legal Reference and ICT Licenses,Thomson Reuters (Professional) UK Limited,6801304888,"854,973.99",
Crown Prosecution Service ,10/06/22,Crown Court Graduated Fee Scheme,London South RASSO,2 Harcourt Buildings,JK/116632,"59,415.00",Y
Crown Prosecution Service ,13/06/22,Crown Court Graduated Fee Scheme,London North RASSO,Furnival Chambers,170263 NSHAN Mukendi,"43,596.00",Y
Crown Prosecution Service ,13/06/22,Recoverable VAT control,Balance Sheet,Lumen Technologies UK Ltd,292109904/1087490,"13,111.72",Y
Crown Prosecution Service ,13/06/22,IT services,PSN Connectivity Contract,Lumen Technologies UK Ltd,292109904/1087490,"65,558.61",
Crown Prosecution Service ,13/06/22,IT services,DTS Programme Project Cost,Lumen Technologies UK Ltd,292822311/1088435,"33,930.76",Y
Crown Prosecution Service ,13/06/22,IT services,Estate and FM: Programme,Lumen Technologies UK Ltd,292822311/1088435,"14,640.70",Y
Crown Prosecution Service ,13/06/22,Data Communications,Other IT costs,Lumen Technologies UK Ltd,296112237/1088751,"45,600.97",Y
Crown Prosecution Service ,13/06/22,Recoverable VAT control,Balance Sheet,Lumen Technologies UK Ltd,296125469/1089061,"16,719.27",Y
Crown Prosecution Service ,13/06/22,IT services,PSN Connectivity Contract,Lumen Technologies UK Ltd,296125469/1089061,"83,596.36",
Crown Prosecution Service ,13/06/22,IT services,PSN Services Contract,Lumen Technologies UK Ltd,296247970/1092081,"117,639.82",
Crown Prosecution Service ,13/06/22,Recoverable VAT control,Balance Sheet,Lumen Technologies UK Ltd,296247970/1092081,"23,527.96",Y
Crown Prosecution Service ,13/06/22,Recoverable VAT control,Balance Sheet,WIPRO Holdings London,5000015817,"21,325.30",Y
Crown Prosecution Service ,13/06/22,IT services,End User Computing Contract,WIPRO Holdings London,5000015817,"106,626.50",
Crown Prosecution Service ,13/06/22,Recoverable VAT control,Balance Sheet,WIPRO Holdings London,5000015818,"21,325.30",Y
Crown Prosecution Service ,13/06/22,IT services,End User Computing Contract,WIPRO Holdings London,5000015818,"106,626.50",
Crown Prosecution Service ,13/06/22,Recoverable VAT control,Balance Sheet,WIPRO Holdings London,5000017155,"21,325.30",Y
Crown Prosecution Service ,13/06/22,IT services,End User Computing Contract,WIPRO Holdings London,5000017155,"106,626.50",
Crown Prosecution Service ,13/06/22,IT services,DTS Programme Project Cost,WIPRO Holdings London,90091348,"30,141.60",Y
Crown Prosecution Service ,13/06/22,IT services,DTS Programme Project Cost,CGI IT UK Ltd,GB014083394,"32,526.89",Y
Crown Prosecution Service ,13/06/22,IT services,DTS Programme Project Cost,ICS.AI Ltd Basingstoke,INV-621,"35,146.80",Y
Crown Prosecution Service ,13/06/22,IT services,DTS Programme Project Cost,ICS.AI Ltd Basingstoke,INV-622,"31,400.40",Y
Crown Prosecution Service ,13/06/22,Crown Court Graduated Fee Scheme,SEOC Team 2,QEB Hollis Whiteman Chambers,PDY 110879,"34,149.13",Y
Crown Prosecution Service ,13/06/22,New Works: non capital,Estate and FM: Programme,Apleona Workspace Solutions Ltd Motherwell,SI2202937,"37,778.40",Y
Crown Prosecution Service ,13/06/22,Crown Court Very High Cost Cases Full Scheme,East Midlands Complex Casework Unit,Seven Bedford Row,silentpool al12,"53,023.24",Y
Crown Prosecution Service ,14/06/22,Recoverable VAT control,Balance Sheet,Trustmarque Solutions Ltd,2342802,"12,034.99",Y
Crown Prosecution Service ,14/06/22,IT non capital software licences,Legal Reference and ICT Licenses,Trustmarque Solutions Ltd,2342802,"60,174.94",
Crown Prosecution Service ,14/06/22,Recoverable VAT control,Balance Sheet,Xerox (UK) Ltd,900217709,"33,372.41",Y
Crown Prosecution Service ,14/06/22,Short term leases from 2 to 12 months: IT and Equipment,Print Contract,Xerox (UK) Ltd,900217709,"166,862.02",
Crown Prosecution Service ,14/06/22,Recoverable VAT control,Balance Sheet,Xerox (UK) Ltd,900218529,"35,910.74",Y
Crown Prosecution Service ,14/06/22,Short term leases from 2 to 12 months: IT and Equipment,Print Contract,Xerox (UK) Ltd,900218529,"179,553.72",
Crown Prosecution Service ,14/06/22,Recoverable VAT control,Balance Sheet,Xerox (UK) Ltd,900219243,"23,983.86",Y
Crown Prosecution Service ,14/06/22,IT services,DTS Programme Project Cost,Xerox (UK) Ltd,900219243,400.00,
Crown Prosecution Service ,14/06/22,Short term leases from 2 to 12 months: IT and Equipment,Print Contract,Xerox (UK) Ltd,900219243,"119,519.28",
Crown Prosecution Service ,14/06/22,UK Hotels,PF People and Business Change,Clarity Travel Management,CPSHQ0320,417.00,Y
Crown Prosecution Service ,14/06/22,UK National rail travel,PF Senior Staffing,Clarity Travel Management,CPSHQ0320,266.50,
Crown Prosecution Service ,14/06/22,UK Hotels,CFO Commercial,Clarity Travel Management,CPSHQ0320,226.00,Y
Crown Prosecution Service ,14/06/22,UK Hotels,Operational Business Support,Clarity Travel Management,CPSHQ0320,376.00,Y
Crown Prosecution Service ,14/06/22,UK Hotels,CFO Strategic Financial Planning,Clarity Travel Management,CPSHQ0320,205.77,Y
Crown Prosecution Service ,14/06/22,UK Hotels,CFO Financial Reporting,Clarity Travel Management,CPSHQ0320,124.98,Y
Crown Prosecution Service ,14/06/22,UK Hotels,PF HR Systems and Information,Clarity Travel Management,CPSHQ0320,372.80,Y
Crown Prosecution Service ,14/06/22,Overseas Hotels,PF National Black Crown Prosecutors Association,Clarity Travel Management,CPSHQ0320,246.00,Y
Crown Prosecution Service ,14/06/22,UK Hotels,Compliance and Assurance,Clarity Travel Management,CPSHQ0320,"2,767.70",Y
Crown Prosecution Service ,14/06/22,UK Hotels,DID DTS Change,Clarity Travel Management,CPSHQ0320,"1,494.94",Y
Crown Prosecution Service ,14/06/22,UK Hotels,PF National Black Crown Prosecutors Association,Clarity Travel Management,CPSHQ0320,"1,083.00",Y
Crown Prosecution Service ,14/06/22,UK Hotels,DID Operational Process,Clarity Travel Management,CPSHQ0320,478.00,Y
Crown Prosecution Service ,14/06/22,UK Hotels,Strategy and Policy,Clarity Travel Management,CPSHQ0320,563.00,Y
Crown Prosecution Service ,14/06/22,UK Hotels,Director of Legal Services,Clarity Travel Management,CPSHQ0320,276.00,Y
Crown Prosecution Service ,14/06/22,UK Hotels,Central Operational Training,Clarity Travel Management,CPSHQ0320,"1,866.96",Y
Crown Prosecution Service ,14/06/22,UK Hotels,Permanent Transfer Costs,Clarity Travel Management,CPSHQ0320,372.99,Y
Crown Prosecution Service ,14/06/22,UK Hotels,CFO Finance Operations,Clarity Travel Management,CPSHQ0320,133.00,Y
Crown Prosecution Service ,14/06/22,UK Hotels,PF Analytics and Workforce Plan,Clarity Travel Management,CPSHQ0320,80.00,Y
Crown Prosecution Service ,14/06/22,UK Hotels,DID DTS Technology,Clarity Travel Management,CPSHQ0320,512.00,Y
Crown Prosecution Service ,14/06/22,UK Hotels,DID Security and Information,Clarity Travel Management,CPSHQ0320,84.00,Y
Crown Prosecution Service ,14/06/22,UK Hotels,Operational Change,Clarity Travel Management,CPSHQ0320,"5,109.63",Y
Crown Prosecution Service ,14/06/22,UK Hotels,PF Legal Training,Clarity Travel Management,CPSHQ0320,"1,329.93",Y
Crown Prosecution Service ,14/06/22,UK National rail travel,CFO Commercial,Clarity Travel Management,CPSHQ0320,787.20,
Crown Prosecution Service ,14/06/22,UK National rail travel,Legal Trainee Salaries,Clarity Travel Management,CPSHQ0320,51.40,
Crown Prosecution Service ,14/06/22,UK National rail travel,Operational Change,Clarity Travel Management,CPSHQ0320,849.80,
Crown Prosecution Service ,14/06/22,UK National rail travel,Court Business Unit,Clarity Travel Management,CPSHQ0320,111.00,
Crown Prosecution Service ,14/06/22,UK National rail travel,DID Central Leadership Team,Clarity Travel Management,CPSHQ0320,814.50,
Crown Prosecution Service ,14/06/22,UK National rail travel,Press Office,Clarity Travel Management,CPSHQ0320,540.10,
Crown Prosecution Service ,14/06/22,UK National rail travel,PF HR Operations,Clarity Travel Management,CPSHQ0320,226.90,
Crown Prosecution Service ,14/06/22,UK National rail travel,PF HR Systems and Information,Clarity Travel Management,CPSHQ0320,156.10,
Crown Prosecution Service ,14/06/22,UK National rail travel,PF Resourcing,Clarity Travel Management,CPSHQ0320,234.60,
Crown Prosecution Service ,14/06/22,UK National rail travel,DID DTS Technology,Clarity Travel Management,CPSHQ0320,390.30,
Crown Prosecution Service ,14/06/22,UK National rail travel,Operational Performance,Clarity Travel Management,CPSHQ0320,64.50,
Crown Prosecution Service ,14/06/22,UK National rail travel,Strategy and Policy,Clarity Travel Management,CPSHQ0320,230.40,
Crown Prosecution Service ,14/06/22,UK National rail travel,PF Analytics and Workforce Plan,Clarity Travel Management,CPSHQ0320,220.60,
Crown Prosecution Service ,14/06/22,UK National rail travel,DID Operational Process,Clarity Travel Management,CPSHQ0320,736.00,
Crown Prosecution Service ,14/06/22,UK National rail travel,PF Learning and Development General,Clarity Travel Management,CPSHQ0320,347.00,
Crown Prosecution Service ,14/06/22,UK National rail travel,Chief Finance Officer,Clarity Travel Management,CPSHQ0320,233.50,
Crown Prosecution Service ,14/06/22,UK National rail travel,Permanent Transfer Costs,Clarity Travel Management,CPSHQ0320,336.80,
Crown Prosecution Service ,14/06/22,UK National rail travel,Private Office,Clarity Travel Management,CPSHQ0320,305.50,
Crown Prosecution Service ,14/06/22,UK National rail travel,DID DTS Change,Clarity Travel Management,CPSHQ0320,"1,132.50",
Crown Prosecution Service ,14/06/22,UK National rail travel,Corporate Communication,Clarity Travel Management,CPSHQ0320,856.70,
Crown Prosecution Service ,14/06/22,UK National rail travel,Central Operational Training,Clarity Travel Management,CPSHQ0320,264.55,
Crown Prosecution Service ,14/06/22,UK Air travel,Private Office,Clarity Travel Management,CPSHQ0320,402.89,
Crown Prosecution Service ,14/06/22,UK National rail travel,Compliance and Assurance,Clarity Travel Management,CPSHQ0320,"1,524.60",
Crown Prosecution Service ,14/06/22,UK National rail travel,DID Security and Information,Clarity Travel Management,CPSHQ0320,"1,064.20",
Crown Prosecution Service ,14/06/22,UK National rail travel,Director of Legal Services,Clarity Travel Management,CPSHQ0320,233.20,
Crown Prosecution Service ,14/06/22,UK National rail travel,PF People and Business Change,Clarity Travel Management,CPSHQ0320,"1,430.10",
Crown Prosecution Service ,14/06/22,UK National rail travel,PF HR Business Partnering,Clarity Travel Management,CPSHQ0320,647.10,
Crown Prosecution Service ,14/06/22,UK National rail travel,CFO Estates,Clarity Travel Management,CPSHQ0320,4.40,
Crown Prosecution Service ,14/06/22,Overseas Hotels,PF Legal Training,Clarity Travel Management,CPSHQ0320,333.00,Y
Crown Prosecution Service ,14/06/22,Other managed/contractor services,DTS Programme Project Cost,Equal Experts London,INV-10337,"124,002.00",Y
Crown Prosecution Service ,15/06/22,Crown Court Graduated Fee Scheme,Wessex Crown Court Unit,12 College Place,124473EL,"25,094.76",
Crown Prosecution Service ,15/06/22,Crown Court Graduated Fee Scheme,South West Crown Court: South,Guildhall Chambers Bristol,189723RAYQC,"27,340.14",Y
Crown Prosecution Service ,16/06/22,External legal advice - Civil litigation,Other Corporate Programme Payments,Government Legal Department,509812,"129,379.37",Y
Crown Prosecution Service ,16/06/22,Crown Court Graduated Fee Scheme,West Midlands Complex Casework Unit,No 5 Fountain Court Chambers,756599/JOH/HEATH/3,"41,649.00",Y
Crown Prosecution Service ,16/06/22,Crown Court Graduated Fee Scheme,Counter Terrorism Unit: Internal Funding,No 5 Fountain Court Chambers,804050/MBK/STYLES,"37,788.90",Y
Crown Prosecution Service ,16/06/22,Crown Court Graduated Fee Scheme,West Midlands Complex Casework Unit,No 5 Fountain Court Chambers,809551/MH/MCGHEE,"47,659.92",Y
Crown Prosecution Service ,16/06/22,Crown Court Graduated Fee Scheme,West Midlands Complex Casework Unit,No 5 Fountain Court Chambers,809551/SCO/MCGHEE,"25,164.48",Y
Crown Prosecution Service ,16/06/22,IT services,DTS Programme Project Cost,FlyForm LTD Cardiff,INV-10831,"24,395.99",
Crown Prosecution Service ,16/06/22,Recoverable VAT control,Balance Sheet,FlyForm LTD Cardiff,INV-10831,"4,879.21",Y
Crown Prosecution Service ,17/06/22,Crown Court Graduated Fee Scheme,Wessex Crown Court Unit,Pump Court Chambers - 3 Pump Court,272431-JNP,"40,005.00",Y
Crown Prosecution Service ,17/06/22,Crown Court Graduated Fee Scheme,Wessex Crown Court Unit,3PB (3 Paper Buildings),ASF397632,"36,526.80",Y
Crown Prosecution Service ,20/06/22,Crown Court Graduated Fee Scheme,RWD Midlands Wales Unit,5 Paper Buildings,115874/MH,"27,221.40",Y
Crown Prosecution Service ,20/06/22,Crown Court Very High Cost Cases Full Scheme,RWD North Unit,9 St John Street (Nine),383207 - NC,"30,039.54",Y
Crown Prosecution Service ,20/06/22,Crown Court Very High Cost Cases Full Scheme,Yorkshire and Humberside Complex Casework Unit,Park Square Barristers (No 6 and Sovereign merged),508597/MMKQC/ST1,"39,840.00",Y
Crown Prosecution Service ,21/06/22,National non domestic rates,Estate and FM: Programme,Government Property Agency London,00000001/18009,"24,576.00",
Crown Prosecution Service ,21/06/22,Landlord service charge,Estate and FM: Programme,Government Property Agency London,00000001/18009,"7,149.17",
Crown Prosecution Service ,21/06/22,Property management fees,Estate and FM: Programme,Government Property Agency London,00000001/18743,"8,838.23",Y
Crown Prosecution Service ,21/06/22,National non domestic rates,Estate and FM: Programme,Government Property Agency London,00000001/18743,"24,576.00",
Crown Prosecution Service ,21/06/22,Landlord service charge,Estate and FM: Programme,Government Property Agency London,00000001/18743,"7,149.17",
Crown Prosecution Service ,21/06/22,Lease liability non current lease payments,Balance Sheet,Government Property Agency London,00000001/18743,"66,875.00",
Crown Prosecution Service ,21/06/22,Recoverable VAT control,Balance Sheet,Lumen Technologies UK Ltd,292109942/1087518,"18,351.00",Y
Crown Prosecution Service ,21/06/22,IT services,PSN Connectivity Contract,Lumen Technologies UK Ltd,292109942/1087518,"91,755.01",
Crown Prosecution Service ,21/06/22,IT services,PSN Services Contract,Lumen Technologies UK Ltd,296817910/1092811,"32,863.48",Y
Crown Prosecution Service ,21/06/22,Intangibles asset purchase clearing CMS,DTS ICT Capital Expenditure,CGI IT UK Ltd,GB014083576,"355,700.00",
Crown Prosecution Service ,21/06/22,Recoverable VAT control,Balance Sheet,CGI IT UK Ltd,GB014083576,"71,140.00",Y
Crown Prosecution Service ,21/06/22,Recoverable VAT control,Balance Sheet,CGI IT UK Ltd,GB014083577,"99,114.80",Y
Crown Prosecution Service ,21/06/22,Intangibles asset purchase clearing CMS,DTS ICT Capital Expenditure,CGI IT UK Ltd,GB014083577,"495,574.00",
Crown Prosecution Service ,21/06/22,Recoverable VAT control,Balance Sheet,CGI IT UK Ltd,GB014083925,"13,116.24",Y
Crown Prosecution Service ,21/06/22,IT services,Apps and Hosting Contract,CGI IT UK Ltd,GB014083925,"65,581.18",
Crown Prosecution Service ,21/06/22,IT services,Apps and Hosting Contract,CGI IT UK Ltd,GB014083965,"186,489.16",
Crown Prosecution Service ,21/06/22,Recoverable VAT control,Balance Sheet,CGI IT UK Ltd,GB014083965,"37,297.83",Y
Crown Prosecution Service ,21/06/22,Other managed/contractor services,DTS Programme Project Cost,Equal Experts London,INV-10517,"121,824.00",Y
Crown Prosecution Service ,22/06/22,Recoverable VAT control,Balance Sheet,Mendip Media Group Ltd Tiverton,0000000186,"5,872.60",Y
Crown Prosecution Service ,22/06/22,Transcriptions and Translation,Other Corporate Programme Payments,Mendip Media Group Ltd Tiverton,0000000186,"29,363.00",
Crown Prosecution Service ,22/06/22,Recoverable VAT control,Balance Sheet,Mendip Media Group Ltd Tiverton,0000000187,"6,826.60",Y
Crown Prosecution Service ,22/06/22,Transcriptions and Translation,Other Corporate Programme Payments,Mendip Media Group Ltd Tiverton,0000000187,"34,133.00",
Crown Prosecution Service ,22/06/22,Crown Court Graduated Fee Scheme,London North Complex Casework Unit,Furnival Chambers,167255 JDS Forrester,"25,744.56",Y
Crown Prosecution Service ,22/06/22,Crown Court Graduated Fee Scheme,London South Crown Court Unit,Furnival Chambers,168115 CCA Tahmida,"38,575.80",Y
Crown Prosecution Service ,22/06/22,Crown Court Graduated Fee Scheme,London North Complex Casework Unit,23 Essex Street Chambers,190259-JAP,"35,151.00",Y
Crown Prosecution Service ,22/06/22,Crown Court Graduated Fee Scheme,Thames and Chiltern Complex Casework Unit,2 Kings Bench Walk London,278416-BMC-OFB6,"27,653.52",Y
Crown Prosecution Service ,22/06/22,Recoverable VAT control,Balance Sheet,CGI IT UK Ltd,GB014084069,"19,739.51",Y
Crown Prosecution Service ,22/06/22,IT services,Service Desk Contract,CGI IT UK Ltd,GB014084069,"98,697.54",
Crown Prosecution Service ,22/06/22,IT services,DTS Programme Project Cost,eSynergy Solutions Ltd,INV00000608,"51,660.00",Y
Crown Prosecution Service ,22/06/22,IT services,DTS Programme Project Cost,eSynergy Solutions Ltd,INV00000609,"90,720.00",Y
Crown Prosecution Service ,22/06/22,IT services,DTS Programme Project Cost,eSynergy Solutions Ltd,INV00000629,"210,495.00",Y
Crown Prosecution Service ,22/06/22,Salary sacrifice suspense,Balance Sheet,Edenred,INV26005861,"27,891.29",
Crown Prosecution Service ,22/06/22,Other Staff Costs,CFO Finance Operations,Edenred,INV26005861,944.41,
Crown Prosecution Service ,22/06/22,IT non capital software licences,Legal Reference and ICT Licenses,Softcat Plc Marlow,INVUK456676,"119,089.62",Y
Crown Prosecution Service ,22/06/22,Recoverable VAT control,Balance Sheet,AVR Transcription Ltd Bolton,MAY22-CPS-35781,"9,143.41",Y
Crown Prosecution Service ,22/06/22,Transcriptions and Translation,Other Corporate Programme Payments,AVR Transcription Ltd Bolton,MAY22-CPS-35781,"45,717.01",
Crown Prosecution Service ,23/06/22,Crown Court Graduated Fee Scheme,London North Complex Casework Unit,2 Harcourt Buildings,115283 EF TRIAL,"44,841.24",Y
Crown Prosecution Service ,23/06/22,Crown Court Graduated Fee Scheme,London North Complex Casework Unit,2 Harcourt Buildings,115283 JD TRIAL,"91,180.32",Y
Crown Prosecution Service ,23/06/22,Crown Court Graduated Fee Scheme,West Midlands Complex Casework Unit,Red Lion Chambers (18 RLC),163104RStrialfees,"26,901.00",Y
Crown Prosecution Service ,23/06/22,Crown Court Very High Cost Cases Full Scheme,SEOC Team 1,Foundry Chambers (9-12 Bell Yard),195974/MC,"104,888.81",Y
Crown Prosecution Service ,23/06/22,Crown Court Graduated Fee Scheme,North West Crown Court Hub,Lincoln House Chambers,249416 PCR QC,"32,898.90",Y
Crown Prosecution Service ,24/06/22,Crown Court Graduated Fee Scheme,SEOC Team 2,5 Paper Buildings,117294/JEN,"31,259.76",Y
Crown Prosecution Service ,24/06/22,Crown Court Graduated Fee Scheme,London North Complex Casework Unit,2 Hare Court Chambers -Chambers of Orlando Pownall,120270!,"42,865.50",Y
Crown Prosecution Service ,24/06/22,Crown Court Graduated Fee Scheme,Counter Terrorism Unit: Internal Funding,Red Lion Chambers (18 RLC),163029LSE,"25,980.96",Y
Crown Prosecution Service ,24/06/22,Crown Court Graduated Fee Scheme,West Midlands Crown Court Unit,23 Essex Street Chambers,194670-BWI,"29,738.88",Y
Crown Prosecution Service ,24/06/22,Crown Court Graduated Fee Scheme,West Midlands Crown Court Unit,23 Essex Street Chambers,194670-LWI-TRIAL,"63,501.65",Y
Crown Prosecution Service ,24/06/22,Recoverable VAT control,Balance Sheet,CGI IT UK Ltd,GB014083578,"18,988.60",Y
Crown Prosecution Service ,24/06/22,Intangibles asset purchase clearing CMS,DTS ICT Capital Expenditure,CGI IT UK Ltd,GB014083578,"94,943.00",
Crown Prosecution Service ,27/06/22,Presentational Equipment,RWD North Unit,Evidential Ltd Manchester,0000000581,"34,232.40",Y
Crown Prosecution Service ,27/06/22,Crown Court Graduated Fee Scheme,London North Complex Casework Unit,Nine Bedford Row (9 Bedford Row),145036jb,"27,579.00",Y
Crown Prosecution Service ,27/06/22,Crown Court Graduated Fee Scheme,Thames and Chiltern Complex Casework Unit,23 Essex Street Chambers,191451-JAP,"27,633.72",Y
Crown Prosecution Service ,27/06/22,Crown Court Graduated Fee Scheme,Thames Chiltern Crown Court Unit,23 Essex Street Chambers,195652-SAM,"30,480.12",Y
Crown Prosecution Service ,27/06/22,Crown Court Graduated Fee Scheme,RWD Midlands Wales Unit,36 Bedford Row,204046-SA,"47,621.15",Y
Crown Prosecution Service ,27/06/22,Recoverable VAT control,Balance Sheet,Lumen Technologies UK Ltd,296125437/1089681,"22,235.43",Y
Crown Prosecution Service ,27/06/22,IT services,PSN Connectivity Contract,Lumen Technologies UK Ltd,296125437/1089681,"111,177.13",
Crown Prosecution Service ,27/06/22,Conference Organisation,PF National Black Crown Prosecutors Association,Calder Communications Ltd Leeds,445632,"26,688.19",Y
Crown Prosecution Service ,27/06/22,Courier Services,Estate and FM: Administration,DX Network Services Ltd,83552269,"6,074.02",
Crown Prosecution Service ,27/06/22,Recoverable VAT control,Balance Sheet,DX Network Services Ltd,83552269,"17,677.71",Y
Crown Prosecution Service ,27/06/22,Courier Services,Estate and FM: Programme,DX Network Services Ltd,83552269,"16,439.25",
Crown Prosecution Service ,27/06/22,Courier Services,Wessex Area Business Centre,DX Network Services Ltd,83552269,"6,469.18",
Crown Prosecution Service ,27/06/22,Courier Services,South East Business Centre,DX Network Services Ltd,83552269,"10,329.25",
Crown Prosecution Service ,27/06/22,Courier Services,East Midlands Area Business Centre,DX Network Services Ltd,83552269,"8,034.85",
Crown Prosecution Service ,27/06/22,Courier Services,Thames and Chiltern Area Business Centre,DX Network Services Ltd,83552269,"3,271.77",
Crown Prosecution Service ,27/06/22,Courier Services,West Midlands Area Business Centre,DX Network Services Ltd,83552269,"6,710.59",
Crown Prosecution Service ,27/06/22,Courier Services,Mersey Cheshire Area Business Centre,DX Network Services Ltd,83552269,"3,430.94",
Crown Prosecution Service ,27/06/22,Courier Services,South West Area Business Centre,DX Network Services Ltd,83552269,"4,659.59",
Crown Prosecution Service ,27/06/22,Courier Services,North East Area Business Centre,DX Network Services Ltd,83552269,"1,931.09",
Crown Prosecution Service ,27/06/22,Courier Services,North West Area Business Centre,DX Network Services Ltd,83552269,"9,514.99",
Crown Prosecution Service ,27/06/22,Courier Services,East of England Area Business Centre,DX Network Services Ltd,83552269,"2,475.92",
Crown Prosecution Service ,27/06/22,Courier Services,Cymru Wales Area Business Centre,DX Network Services Ltd,83552269,"5,171.94",
Crown Prosecution Service ,27/06/22,Courier Services,Yorkshire and Humberside Area Business Centre,DX Network Services Ltd,83552269,"3,856.89",
Crown Prosecution Service ,27/06/22,Courier Services,London North Complex Casework Unit,DX Network Services Ltd,83552269,18.27,
Crown Prosecution Service ,27/06/22,Recoverable VAT control,Balance Sheet,Xerox (UK) Ltd,900219775,"11,810.10",Y
Crown Prosecution Service ,27/06/22,Short term leases from 2 to 12 months: IT and Equipment,Print Contract,Xerox (UK) Ltd,900219775,"59,050.48",
Crown Prosecution Service ,27/06/22,Crown Court Graduated Fee Scheme,West Midlands Crown Court Unit,2 Harcourt Buildings,JD/115061,"29,270.40",Y
Crown Prosecution Service ,27/06/22,IT non capital software licences,Legal Reference and ICT Licenses,CDW Limited London,PSINV03611929,"56,259.90",Y
Crown Prosecution Service ,27/06/22,Crown Court Graduated Fee Scheme,London North Crown Court Unit,QEB Hollis Whiteman Chambers,RS 105553 b,"28,422.79",Y
Crown Prosecution Service ,28/06/22,Crown Court Graduated Fee Scheme,SEOC Team 2,Queen Square Chambers,117294/RS-5PB,"39,228.18",Y
Crown Prosecution Service ,28/06/22,General Professional Services,DID Security and Information,Cabinet Office RM Shared Services,3819354,"98,400.00",Y
Crown Prosecution Service ,29/06/22,Recoverable VAT control,Balance Sheet,WIPRO Holdings London,5000066973,"21,325.30",Y
Crown Prosecution Service ,29/06/22,IT services,End User Computing Contract,WIPRO Holdings London,5000066973,"106,626.50",
Crown Prosecution Service ,29/06/22,IT services,Apps and Hosting Contract,CGI IT UK Ltd,GB014084676,"694,209.62",
Crown Prosecution Service ,29/06/22,Recoverable VAT control,Balance Sheet,CGI IT UK Ltd,GB014084676,"138,841.92",Y
Crown Prosecution Service ,29/06/22,IT services,Apps and Hosting Contract,CGI IT UK Ltd,GB014084680,"301,437.46",Y
Crown Prosecution Service ,29/06/22,Crown Court Graduated Fee Scheme,East Midlands RASSO Unit,Seven Bedford Row,povey an,"30,180.60",Y
Crown Prosecution Service ,30/06/22,Facilities management,Estate and FM: Programme,Government Property Agency London,00000001/17903,"30,247.97",Y
Crown Prosecution Service ,30/06/22,National non domestic rates,Estate and FM: Programme,Government Property Agency London,00000001/17903,"5,302.00",
Crown Prosecution Service ,30/06/22,Landlord service charge,Estate and FM: Programme,Government Property Agency London,00000001/17903,"8,294.15",
Crown Prosecution Service ,30/06/22,Facilities management,Estate and FM: Programme,Government Property Agency London,00000001/17995,"38,222.81",Y
Crown Prosecution Service ,30/06/22,National non domestic rates,Estate and FM: Programme,Government Property Agency London,00000001/17995,"15,744.00",
Crown Prosecution Service ,30/06/22,Landlord service charge,Estate and FM: Programme,Government Property Agency London,00000001/17995,"33,248.79",
Crown Prosecution Service ,30/06/22,Facilities management,Estate and FM: Programme,Government Property Agency London,00000001/17998,"42,547.43",Y
Crown Prosecution Service ,30/06/22,National non domestic rates,Estate and FM: Programme,Government Property Agency London,00000001/17998,"24,154.03",
Crown Prosecution Service ,30/06/22,Facilities management,Estate and FM: Programme,Government Property Agency London,00000001/18256,"45,095.39",Y
Crown Prosecution Service ,30/06/22,Facilities management,Estate and FM: Programme,Government Property Agency London,00000001/18257,"30,247.98",Y
Crown Prosecution Service ,30/06/22,Landlord service charge,Estate and FM: Programme,Government Property Agency London,00000001/18257,"8,294.15",
Crown Prosecution Service ,30/06/22,Facilities management,Estate and FM: Programme,Government Property Agency London,00000001/18292,"44,270.40",Y
Crown Prosecution Service ,30/06/22,Landlord service charge,Estate and FM: Programme,Government Property Agency London,00000001/18292,"11,393.44",
Crown Prosecution Service ,30/06/22,Facilities management,Estate and FM: Programme,Government Property Agency London,00000001/18323,"22,455.05",Y
Crown Prosecution Service ,30/06/22,Landlord service charge,Estate and FM: Programme,Government Property Agency London,00000001/18323,"10,508.37",
Crown Prosecution Service ,30/06/22,Property management fees,Estate and FM: Programme,Government Property Agency London,00000001/18573,"9,831.29",Y
Crown Prosecution Service ,30/06/22,Facilities management,Estate and FM: Programme,Government Property Agency London,00000001/18573,"25,411.07",Y
Crown Prosecution Service ,30/06/22,National non domestic rates,Estate and FM: Programme,Government Property Agency London,00000001/18573,"34,880.00",
Crown Prosecution Service ,30/06/22,Landlord service charge,Estate and FM: Programme,Government Property Agency London,00000001/18573,"30,171.96",
Crown Prosecution Service ,30/06/22,Lease liability non current lease payments,Balance Sheet,Government Property Agency London,00000001/18573,"80,407.80",
Crown Prosecution Service ,30/06/22,Property management fees,Estate and FM: Programme,Government Property Agency London,00000001/18576,"10,053.73",Y
Crown Prosecution Service ,30/06/22,Facilities management,Estate and FM: Programme,Government Property Agency London,00000001/18576,"44,270.40",Y
Crown Prosecution Service ,30/06/22,Lease liability non current lease payments,Balance Sheet,Government Property Agency London,00000001/18576,"23,429.25",
Crown Prosecution Service ,30/06/22,Landlord service charge,Estate and FM: Programme,Government Property Agency London,00000001/18576,"11,393.44",
Crown Prosecution Service ,30/06/22,National non domestic rates,Estate and FM: Programme,Government Property Agency London,00000001/18576,"17,645.96",
Crown Prosecution Service ,30/06/22,Property management fees,Estate and FM: Programme,Government Property Agency London,00000001/18579,"7,964.86",Y
Crown Prosecution Service ,30/06/22,Facilities management,Estate and FM: Programme,Government Property Agency London,00000001/18579,"16,739.62",Y
Crown Prosecution Service ,30/06/22,National non domestic rates,Estate and FM: Programme,Government Property Agency London,00000001/18579,"15,744.00",
Crown Prosecution Service ,30/06/22,Short term leases from 2 to 12 months: Property,Estate and FM: Programme,Government Property Agency London,00000001/18579,"48,123.00",
Crown Prosecution Service ,30/06/22,Landlord service charge,Estate and FM: Programme,Government Property Agency London,00000001/18579,"22,305.61",
Crown Prosecution Service ,30/06/22,Property management fees,Estate and FM: Programme,Government Property Agency London,00000001/18580,"6,643.20",Y
Crown Prosecution Service ,30/06/22,Facilities management,Estate and FM: Programme,Government Property Agency London,00000001/18580,"22,528.12",Y
Crown Prosecution Service ,30/06/22,National non domestic rates,Estate and FM: Programme,Government Property Agency London,00000001/18580,"4,928.00",
Crown Prosecution Service ,30/06/22,Landlord service charge,Estate and FM: Programme,Government Property Agency London,00000001/18580,"21,933.47",
Crown Prosecution Service ,30/06/22,Short term leases from 2 to 12 months: Property,Estate and FM: Programme,Government Property Agency London,00000001/18580,"24,862.65",
Crown Prosecution Service ,30/06/22,Facilities management,Estate and FM: Programme,Government Property Agency London,00000001/18584,"45,095.39",Y
Crown Prosecution Service ,30/06/22,Property management fees,Estate and FM: Programme,Government Property Agency London,00000001/18584,"15,535.94",Y
Crown Prosecution Service ,30/06/22,National non domestic rates,Estate and FM: Programme,Government Property Agency London,00000001/18584,"43,200.00",
Crown Prosecution Service ,30/06/22,Lease liability non current lease payments,Balance Sheet,Government Property Agency London,00000001/18584,"210,288.00",
Crown Prosecution Service ,30/06/22,Landlord service charge,Estate and FM: Programme,Government Property Agency London,00000001/18584,"97,060.30",
Crown Prosecution Service ,30/06/22,Facilities management,Estate and FM: Programme,Government Property Agency London,00000001/18606,"18,387.76",Y
Crown Prosecution Service ,30/06/22,Facilities management,Estate and FM: Administration,Government Property Agency London,00000001/18606,"18,387.74",Y
Crown Prosecution Service ,30/06/22,Property management fees,Estate and FM: Programme,Government Property Agency London,00000001/18657,"3,794.24",Y
Crown Prosecution Service ,30/06/22,Property management fees,Estate and FM: Administration,Government Property Agency London,00000001/18657,"3,794.24",Y
Crown Prosecution Service ,30/06/22,Facilities management,Estate and FM: Administration,Government Property Agency London,00000001/18657,"18,387.76",Y
Crown Prosecution Service ,30/06/22,Facilities management,Estate and FM: Programme,Government Property Agency London,00000001/18657,"18,387.76",Y
Crown Prosecution Service ,30/06/22,Landlord service charge,Estate and FM: Programme,Government Property Agency London,00000001/18657,"17,917.00",
Crown Prosecution Service ,30/06/22,National non domestic rates,Estate and FM: Administration,Government Property Agency London,00000001/18657,"8,316.15",
Crown Prosecution Service ,30/06/22,National non domestic rates,Estate and FM: Programme,Government Property Agency London,00000001/18657,"8,316.15",
Crown Prosecution Service ,30/06/22,Lease liability non current lease payments,Balance Sheet,Government Property Agency London,00000001/18657,"72,484.95",
Crown Prosecution Service ,30/06/22,Landlord service charge,Estate and FM: Administration,Government Property Agency London,00000001/18657,"17,917.00",
Crown Prosecution Service ,30/06/22,Property management fees,Estate and FM: Programme,Government Property Agency London,00000001/18713,"6,106.30",Y
Crown Prosecution Service ,30/06/22,Facilities management,Estate and FM: Programme,Government Property Agency London,00000001/18713,"22,455.05",Y
Crown Prosecution Service ,30/06/22,Lease liability non current lease payments,Balance Sheet,Government Property Agency London,00000001/18713,"12,000.00",
Crown Prosecution Service ,30/06/22,National non domestic rates,Estate and FM: Programme,Government Property Agency London,00000001/18713,"5,383.50",
Crown Prosecution Service ,30/06/22,Landlord service charge,Estate and FM: Programme,Government Property Agency London,00000001/18713,"10,508.37",
Crown Prosecution Service ,30/06/22,Property management fees,Estate and FM: Programme,Government Property Agency London,00000001/18729,"6,984.76",Y
Crown Prosecution Service ,30/06/22,Landlord service charge,Estate and FM: Programme,Government Property Agency London,00000001/18729,"16,347.55",
Crown Prosecution Service ,30/06/22,Lease liability non current lease payments,Balance Sheet,Government Property Agency London,00000001/18729,"35,100.00",
Crown Prosecution Service ,30/06/22,National non domestic rates,Estate and FM: Programme,Government Property Agency London,00000001/18729,"15,104.00",
Crown Prosecution Service ,30/06/22,Property management fees,Estate and FM: Administration,Government Property Agency London,00000001/18730,"6,223.68",Y
Crown Prosecution Service ,30/06/22,Lease liability non current lease payments,Balance Sheet,Government Property Agency London,00000001/18730,"35,778.15",
Crown Prosecution Service ,30/06/22,National non domestic rates,Estate and FM: Administration,Government Property Agency London,00000001/18730,"9,408.00",
Crown Prosecution Service ,30/06/22,Landlord service charge,Estate and FM: Administration,Government Property Agency London,00000001/18730,"18,616.48",
Crown Prosecution Service ,30/06/22,Property management fees,Estate and FM: Programme,Government Property Agency London,00000001/18731,"6,033.70",Y
Crown Prosecution Service ,30/06/22,Lease liability non current lease payments,Balance Sheet,Government Property Agency London,00000001/18731,"11,687.50",
Crown Prosecution Service ,30/06/22,Landlord service charge,Estate and FM: Programme,Government Property Agency London,00000001/18731,"3,695.36",
Crown Prosecution Service ,30/06/22,National non domestic rates,Estate and FM: Programme,Government Property Agency London,00000001/18731,"5,177.13",
Crown Prosecution Service ,30/06/22,Property management fees,Estate and FM: Programme,Government Property Agency London,00000001/18733,"12,037.72",Y
Crown Prosecution Service ,30/06/22,National non domestic rates,Estate and FM: Programme,Government Property Agency London,00000001/18733,"25,472.00",
Crown Prosecution Service ,30/06/22,Lease liability non current lease payments,Balance Sheet,Government Property Agency London,00000001/18733,"87,000.00",
Crown Prosecution Service ,30/06/22,Landlord service charge,Estate and FM: Programme,Government Property Agency London,00000001/18733,"16,111.24",
Crown Prosecution Service ,30/06/22,Property management fees,Estate and FM: Programme,Government Property Agency London,00000001/18734,"10,059.36",Y
Crown Prosecution Service ,30/06/22,Short term leases from 2 to 12 months: Property,Estate and FM: Programme,Government Property Agency London,00000001/18734,"57,402.60",
Crown Prosecution Service ,30/06/22,Landlord service charge,Estate and FM: Programme,Government Property Agency London,00000001/18734,"35,626.51",
Crown Prosecution Service ,30/06/22,National non domestic rates,Estate and FM: Programme,Government Property Agency London,00000001/18734,"24,154.04",
Crown Prosecution Service ,30/06/22,Property management fees,Estate and FM: Programme,Government Property Agency London,00000001/18735,"6,843.18",Y
Crown Prosecution Service ,30/06/22,Landlord service charge,Estate and FM: Programme,Government Property Agency London,00000001/18735,"15,970.00",
Crown Prosecution Service ,30/06/22,National non domestic rates,Estate and FM: Programme,Government Property Agency London,00000001/18735,"8,017.93",
Crown Prosecution Service ,30/06/22,Lease liability non current lease payments,Balance Sheet,Government Property Agency London,00000001/18735,"32,778.00",
Crown Prosecution Service ,30/06/22,Property management fees,Estate and FM: Programme,Government Property Agency London,00000001/18736,"8,966.74",Y
Crown Prosecution Service ,30/06/22,National non domestic rates,Estate and FM: Programme,Government Property Agency London,00000001/18736,"17,408.00",
Crown Prosecution Service ,30/06/22,Landlord service charge,Estate and FM: Programme,Government Property Agency London,00000001/18736,"17,516.34",
Crown Prosecution Service ,30/06/22,Lease liability non current lease payments,Balance Sheet,Government Property Agency London,00000001/18736,"47,000.00",
Crown Prosecution Service ,30/06/22,Property management fees,Estate and FM: Programme,Government Property Agency London,00000001/18737,"6,059.10",Y
Crown Prosecution Service ,30/06/22,Lease liability non current lease payments,Balance Sheet,Government Property Agency London,00000001/18737,"18,986.40",
Crown Prosecution Service ,30/06/22,Landlord service charge,Estate and FM: Programme,Government Property Agency London,00000001/18737,"8,605.72",
Crown Prosecution Service ,30/06/22,National non domestic rates,Estate and FM: Programme,Government Property Agency London,00000001/18737,"7,104.00",
Crown Prosecution Service ,30/06/22,Property management fees,Estate and FM: Programme,Government Property Agency London,00000001/18738,"7,690.43",Y
Crown Prosecution Service ,30/06/22,Lease liability non current lease payments,Balance Sheet,Government Property Agency London,00000001/18738,"74,220.00",
Crown Prosecution Service ,30/06/22,National non domestic rates,Estate and FM: Programme,Government Property Agency London,00000001/18738,"21,856.25",
Crown Prosecution Service ,30/06/22,Landlord service charge,Estate and FM: Programme,Government Property Agency London,00000001/18738,"21,374.50",
Crown Prosecution Service ,30/06/22,Property management fees,Estate and FM: Programme,Government Property Agency London,00000001/18739,"7,917.66",Y
Crown Prosecution Service ,30/06/22,Landlord service charge,Estate and FM: Programme,Government Property Agency London,00000001/18739,"71,853.66",
Crown Prosecution Service ,30/06/22,National non domestic rates,Estate and FM: Programme,Government Property Agency London,00000001/18739,"29,440.00",
Crown Prosecution Service ,30/06/22,Lease liability non current lease payments,Balance Sheet,Government Property Agency London,00000001/18739,"89,856.60",
Crown Prosecution Service ,30/06/22,Property management fees,Estate and FM: Programme,Government Property Agency London,00000001/18740,"6,689.63",Y
Crown Prosecution Service ,30/06/22,Lease liability non current lease payments,Balance Sheet,Government Property Agency London,00000001/18740,"51,967.50",
Crown Prosecution Service ,30/06/22,Landlord service charge,Estate and FM: Programme,Government Property Agency London,00000001/18740,"14,927.44",
Crown Prosecution Service ,30/06/22,National non domestic rates,Estate and FM: Programme,Government Property Agency London,00000001/18740,"15,263.75",
Crown Prosecution Service ,30/06/22,Property management fees,Estate and FM: Programme,Government Property Agency London,00000001/18741,"6,658.06",Y
Crown Prosecution Service ,30/06/22,National non domestic rates,Estate and FM: Programme,Government Property Agency London,00000001/18741,"9,280.00",
Crown Prosecution Service ,30/06/22,Landlord service charge,Estate and FM: Programme,Government Property Agency London,00000001/18741,"17,912.63",
Crown Prosecution Service ,30/06/22,Lease liability non current lease payments,Balance Sheet,Government Property Agency London,00000001/18741,"26,640.00",
Crown Prosecution Service ,30/06/22,Property management fees,Estate and FM: Programme,Government Property Agency London,00000001/18744,"14,832.82",Y
Crown Prosecution Service ,30/06/22,National non domestic rates,Estate and FM: Programme,Government Property Agency London,00000001/18744,"62,618.88",
Crown Prosecution Service ,30/06/22,Landlord service charge,Estate and FM: Programme,Government Property Agency London,00000001/18744,"102,906.72",
Crown Prosecution Service ,30/06/22,Lease liability non current lease payments,Balance Sheet,Government Property Agency London,00000001/18744,"244,327.50",
Crown Prosecution Service ,30/06/22,Facilities management,Estate and FM: Programme,Government Property Agency London,00000001/18793,"30,247.98",Y
Crown Prosecution Service ,30/06/22,Property management fees,Estate and FM: Programme,Government Property Agency London,00000001/18793,"7,638.16",Y
Crown Prosecution Service ,30/06/22,National non domestic rates,Estate and FM: Programme,Government Property Agency London,00000001/18793,"5,302.00",
Crown Prosecution Service ,30/06/22,Landlord service charge,Estate and FM: Programme,Government Property Agency London,00000001/18793,"8,294.15",
Crown Prosecution Service ,30/06/22,Lease liability non current lease payments,Balance Sheet,Government Property Agency London,00000001/18793,"28,800.00",
Crown Prosecution Service ,30/06/22,Lease liability non current lease payments,Balance Sheet,Government Property Agency London,00000001/18849,"29,301.15",
Crown Prosecution Service ,30/06/22,Facilities management,Estate and FM: Administration,Government Property Agency London,00000001/18851,"8,093.92",Y
Crown Prosecution Service ,30/06/22,Property management fees,Estate and FM: Administration,Government Property Agency London,00000001/18851,"6,334.65",Y
Crown Prosecution Service ,30/06/22,Facilities management,Estate and FM: Programme,Government Property Agency London,00000001/18851,"39,517.33",Y
Crown Prosecution Service ,30/06/22,Property management fees,Estate and FM: Programme,Government Property Agency London,00000001/18851,"30,927.95",Y
Crown Prosecution Service ,30/06/22,Landlord service charge,Estate and FM: Programme,Government Property Agency London,00000001/18851,"1,413,981.77",
Crown Prosecution Service ,30/06/22,Lease liability non current lease payments,Balance Sheet,Government Property Agency London,00000001/18851,"1,201,346.27",
Crown Prosecution Service ,30/06/22,National non domestic rates,Estate and FM: Administration,Government Property Agency London,00000001/18851,"84,330.16",
Crown Prosecution Service ,30/06/22,Landlord service charge,Estate and FM: Administration,Government Property Agency London,00000001/18851,"289,610.72",
Crown Prosecution Service ,30/06/22,National non domestic rates,Estate and FM: Programme,Government Property Agency London,00000001/18851,"411,729.59",
Crown Prosecution Service ,30/06/22,Crown Court Graduated Fee Scheme,North West Complex Casework Unit,Harrington Street Chambers,1155276/AJF,"26,716.08",Y
Crown Prosecution Service ,30/06/22,Crown Court Graduated Fee Scheme,Mersey Cheshire Crown Court Unit,Harrington Street Chambers,1162573/RP,"27,841.50",Y
Crown Prosecution Service ,30/06/22,Crown Court Graduated Fee Scheme,Counter Terrorism Unit: Internal Funding,Red Lion Chambers (18 RLC),162377NPS,"25,335.66",Y
Crown Prosecution Service ,30/06/22,Crown Court Graduated Fee Scheme,Thames Chiltern Crown Court Unit,23 Essex Street Chambers,195873-EM,"27,562.44",Y
